Cogmind - Beta 15 @@@ ROGUE MODE // 2025.10.17 @ 14:54:14 Player: Rentaro Result: Destroyed by Y-45 Defender with Beam Rifle Performance ------------- Evolutions (1) 500 Regions Visited (2) 400 Robots Destroyed (39) 195 Value Destroyed (685) 685 Prototype IDs (2) 40 Alien Tech Used (0) 0 Bonus (0) 0 TOTAL SCORE: 1820 Bonus ------- None Cogmind --------- Core Integrity 0/400 Matter 275/300 Energy 77/100 System Corruption 0% Temperature Cool (9) Movement Walking (90) Location -9/Materials Parts ------- > --- POWER (1) -------- (None) > --- PROPULSION (2) --- VSS Leg > --- UTILITY (4) ------ Structural Scanner Sensor Array Signal Interpreter Hacking Suite > --- WEAPON (2) ------- Flail Flail > --- INVENTORY (5) ---- Hacking Suite Hacking Suite Hacking Suite Peak State ------------ > --- POWER ------------ (None) > --- PROPULSION ------- VSS Leg VSS Leg > --- UTILITY ---------- Structural Scanner Sensor Array Signal Interpreter Hacking Suite > --- WEAPON ----------- Flail Flail > --- INVENTORY -------- Hacking Suite Hacking Suite Hacking Suite Flail [Rating: 17] Favorites ----------- Power Ion Engine Engine Ion Engine Propulsion Compact Wheel Treads Light Treads Leg VSS Leg Wheel Compact Wheel Flight Unit Flight Unit Utility Signal Interpreter Device Sensor Array Storage Small Storage Unit Processor Signal Interpreter Hackware Hacking Suite Weapon Flail Energy Gun Medium Laser Ballistic Gun Light Assault Rifle Launcher Grenade Launcher Impact Weapon Flail Build | -11 -10 -9 ------- Run | Yrd Mat Mat Slots Evolved 2 | . . 2 Power . | . . . Propulsion . | . . . Utility 2 | . . 2 Weapon . | . . . Parts Attached 30 | 8 5 17 Power 3 | 1 1 1 Engine 3 | 1 1 1 Core . | . . . Reactor . | . . . Propulsion 9 | 4 . 5 Treads 1 | 1 . . Leg 3 | . . 3 Wheel 3 | 3 . . Hover . | . . . Flight 2 | . . 2 Utility 11 | 1 3 7 Device 7 | . 3 4 Storage 1 | 1 . . Processor 2 | . . 2 Hackware 1 | . . 1 Protection . | . . . Artifact . | . . . Weapon 7 | 2 1 4 Energy Gun 2 | 1 . 1 Energy Cannon . | . . . Ballistic Gun 1 | 1 . . Ballistic Cannon . | . . . Launcher 1 | . 1 . Special Weapon . | . . . Impact Weapon 3 | . . 3 Slashing Weapon . | . . . Piercing Weapon . | . . . Special Melee Weapon . | . . . Unidentified Prototypes . | . . . Parts Lost 8 | . 1 7 Power 1 | . . 1 Propulsion 3 | . . 3 Utility 2 | . . 2 Weapon 2 | . 1 1 Highest Loss Streak 2 | . 1 2 To Critical Strikes 1 | . . 1 Average Backups 4 | 1 5 4 Power . | . 2 . Propulsion . | . 1 . Utility 2 | . . 2 Weapon 1 | . 1 . Tool/Special . | . . . Unused Backups 6 | . 2 4 Power 2 | . 1 1 Propulsion . | . . . Utility 3 | . . 3 Weapon 1 | . 1 . Tool/Special . | . . . Average Slot Usage (%) 84 | . 95 78 Engine 7 | . 14 4 Wheel 14 | . 28 8 Flight 2 | . . 3 Device 18 | . 15 20 Storage 2 | . 9 . Processor 7 | . . 10 Hackware 6 | . . 10 Energy Gun 2 | . 7 . Ballistic Gun 4 | . 14 . Launcher 1 | . 5 . Impact Weapon 13 | . . 20 Peak Build Rating 17 | 6 7 17 Average Rating 10 | 4 6 11 On Entrance 4 | . 6 6 Naked Turns . | . . . Heaviest Build 13 | 11 13 12 Greatest Support 26 | 26 26 26 Greatest Overweight (x) 1 | . . 1 Average Overweight (x) . | . . . Largest Inventory Capacity 8 | 8 8 5 Average Capacity 5 | 6 6 5 Most Carried 7 | 3 7 5 Average Carried 4 | 1 5 4 Final Capacity 8 | 8 5 5 Final Carried 5 | 3 5 3 Class Distribution -------------------- 50% | Mutant 49% | Assassin Dominant Class ---------------- Mutant | -10/Materials Assassin | -9/Materials Resources | -11 -10 -9 ----------- Run | Yrd Mat Mat Matter Collected 666 | 312 129 225 Remotely . | . . . Salvage Created 1183 | 91 284 808 Parts 52 | 2 16 34 Haulers Intercepted 3 | . 1 2 Recyclers Shooed . | . . . Parts Field Recycled . | . . . Retrieved Matter . | . . . Parts Self-Destructed . | . . . Prevented . | . . . Kills | -11 -10 -9 ------- Run | Yrd Mat Mat Combat Hostiles Destroyed 22 | . 5 17 Melee 10 | . . 10 Guns 1 | . 1 . AOE 4 | . 4 . Classes Destroyed 9 | 1 4 4 Worker 2 | . . 2 Builder 5 | . 2 3 Tunneler 1 | . . 1 Hauler 3 | . 1 2 Recycler 5 | 1 1 3 Watcher 1 | . . 1 Swarmer 11 | . 1 10 Grunt 6 | . 4 2 Sentry 5 | . . 5 Best Kill Streak 6 | 1 4 6 Combat Bots Only 4 | . 2 4 Max Kills in Single Turn 2 | 1 2 1 Gunslinging . | . . . Exploded 2 | . 2 . Melee 1 | . . 1 Uniques/NPCs Destroyed . | . . . Combat | -11 -10 -9 -------- Run | Yrd Mat Mat Hostile Shots Fired 135 | . 13 122 Missed 35 | . 5 30 Hits 100 | . 8 92 Projectile 100 | . 8 92 Critical Strikes 3 | . . 3 Damage Taken 1078 | . 116 962 Core 420 | . 10 410 Absorbed by Shields . | . . . Core Remaining (%) 98 | 100 96 . Volleys Fired 36 | 2 32 2 Largest 2 | 2 2 2 Hottest 85 | 70 70 85 Shots Fired 72 | 4 64 4 Gun 59 | 4 51 4 Cannon . | . . . Launcher 13 | . 13 . Special . | . . . Kinetic 36 | 2 32 2 Thermal 23 | 2 19 2 Explosive 13 | . 13 . Electromagnetic . | . . . Robot Hit Streak 8 | 2 8 5 Robot Miss Streak 5 | 1 5 1 Penetration Max . | . . . Secondary Targets . | . . . Shots Hit Robots 86 | 3 27 56 Core Hits 32 | 2 16 14 Critical Kills 2 | . . 2 Critical Parts Destroyed 7 | . . 7 Critical Strikes 9 | . . 9 Smash 9 | . . 9 Melee Attacks 101 | . . 101 Impact 101 | . . 101 Slashing . | . . . Piercing . | . . . Sneak Attacks 12 | . . 12 Combat Hostiles . | . . . Follow-up Attacks 13 | . . 13 Damage Inflicted 2806 | 28 538 2240 Guns 271 | 28 194 49 Cannons . | . . . Explosions 344 | . 344 . Melee 2191 | . . 2191 Ramming . | . . . Kinetic 174 | 15 145 14 Thermal 97 | 13 49 35 Explosive 344 | . 344 . Electromagnetic . | . . . Impact 2191 | . . 2191 Slashing . | . . . Piercing . | . . . Highest Corruption . | . . . Average Corruption . | . . . Corruption Purged . | . . . Corruption Blocked . | . . . Overload Shots . | . . . Overflow Damage 710 | . 4 706 Projectiles . | . . . Explosions 4 | . 4 . Melee 706 | . . 706 Knockbacks 6 | . . 6 Impact 6 | . . 6 Kinetic . | . . . Secondary . | . . . Self-Inflicted Damage 37 | . 37 . Shots 2 | . 2 . Rammed . | . . . Targets Rammed . | . . . Kicked . | . . . Crushed . | . . . Highest Temperature 90 | 30 90 38 Average Temperature 24 | 18 25 18 Received Heat Transfer 246 | . 36 210 Siege Activations . | . . . Martial Activations . | . . . Shielding Activations . | . . . Robots Disrupted . | . . . Combat Hostiles . | . . . Robots Corrupted 11 | . . 11 Combat Hostiles 7 | . . 7 Parts Fried 19 | . . 19 Impact Corruptions 33 | . . 33 Robots Melted . | . . . Combat Hostiles . | . . . Parts Melted . | . . . Heat Transferred 230 | 37 148 45 Parts Sabotaged . | . . . Parts Stolen . | . . . Parts Stripped . | . . . Power Chain Reactions . | . . . Alert | -11 -10 -9 ------- Run | Yrd Mat Mat Maximum Alert Level 1 | . . 1 Low Security (%) 63 | 100 100 44 Level 1 36 | . . 55 Level 2 . | . . . Level 3 . | . . . Level 4 . | . . . Level 5 . | . . . High Security . | . . . Max Security . | . . . Peak Influence 342 | 5 145 342 Initial 53 | . . 53 Average 132 | . 29 189 Influence Increases 1063 | 5 274 784 Destroy 0b10 Robot/C 440 | . 100 340 Destroy 0b10 Robot/NC 85 | 5 20 60 Destroy Leader 108 | . 12 96 Successful Hack 40 | . 16 24 Disable Machine 90 | . 60 30 Destroy Structure 75 | . 66 9 Partial Spotted 15 | . . 15 Lose Combat Pursuer 210 | . . 210 Influence Decreases 873 | 5 145 723 Entered New Map 76 | . . 76 Time Decay 567 | 5 135 427 Lost Part 80 | . 10 70 Purge Threat 150 | . . 150 Squads Dispatched 5 | . 4 1 Investigation 2 | . 2 . Extermination . | . . . Reinforcement 3 | . 2 1 Assault . | . . . Garrison . | . . . Intercept . | . . . Searches Triggered . | . . . Construction Impeded . | . . . Haulers Reinforced . | . . . Active Scanning Responses . | . . . Cargo Convoy Interrupts . | . . . Stealth | -11 -10 -9 --------- Run | Yrd Mat Mat Distress Signals 7 | . 1 6 Communications Jammed . | . . . Distress Signals . | . . . Times Spotted 57 | . 17 40 Peak Tracking Total 5 | . 3 5 Tactical Retreats 8 | . . 8 Traps | -11 -10 -9 ------- Run | Yrd Mat Mat Traps Triggered 1 | . 1 . Indirectly . | . . . Trap Hack Attempts . | . . . Triggered . | . . . Disarmed . | . . . Reprogrammed . | . . . Reused . | . . . Traps Extracted . | . . . Installed . | . . . Triggered . | . . . Machines | -11 -10 -9 ---------- Run | Yrd Mat Mat Machines Disabled 6 | . 4 2 Max in Single Turn 1 | . 1 1 Machines Repaired . | . . . Machines Dismantled . | . . . Machines Sabotaged . | . . . Overloaded Fab Kills . | . . . Hacking | -11 -10 -9 --------- Run | Yrd Mat Mat Machines Accessed 9 | . 3 6 Terminals 8 | . 3 5 Fabricators . | . . . Repair Stations 1 | . . 1 Recycling Units . | . . . Scanalyzers . | . . . Garrison Access . | . . . Total Hacks 33 | . 14 19 Successful 16 | . 7 9 Failed 17 | . 7 10 Catastrophic 1 | . . 1 Database Lockouts . | . . . Manual 8 | . 3 5 Terminals 29 | . 14 15 Fabricators . | . . . Repair Stations 4 | . . 4 Recycling Units . | . . . Scanalyzers . | . . . Garrison Access . | . . . Terminal Hacks 16 | . 7 9 Prototype ID Bank 1 | . 1 . Branch Access Points 1 | . 1 . Emergency Access Points 1 | . . 1 Alert Level 1 | . . 1 Unreport Threat 1 | . . 1 Locate Traps 4 | . 2 2 Investigation Status 1 | . . 1 Recall Investigation 1 | . 1 . Registered Components 1 | . . 1 Registered Prototypes 1 | . . 1 Zone Layout 3 | . 2 1 Fabricator Hacks . | . . . Repair Station Hacks . | . . . Recycling Unit Hacks . | . . . Scanalyzer . | . . . Garrison Access Hacks . | . . . Unauthorized Hacks . | . . . Terminals . | . . . Fabricators . | . . . Repair Stations . | . . . Recycling Units . | . . . Scanalyzers . | . . . Garrison Access . | . . . Data Cores Recovered . | . . . Used . | . . . Hacking Detections 8 | . 2 6 Full Trace Events 2 | . 1 1 Feedback Events . | . . . Feedback Blocked . | . . . Robot Schematics Acquired . | . . . Robots Built . | . . . Authchips . | . . . Time . | . . . Total Robot Build Rating . | . . . Part Schematics Acquired . | . . . Parts Built . | . . . Authchips . | . . . Time . | . . . Total Part Build Rating . | . . . Parts Repaired . | . . . Time . | . . . Parts Recycled . | . . . Recycled Matter . | . . . Retrieved Matter . | . . . Retrieved Components . | . . . Parts Scanalyzed . | . . . Part Schematics Acquired . | . . . Parts Damaged . | . . . Bothacking | -11 -10 -9 ------------ Run | Yrd Mat Mat Used RIF Installer . | . . . Robots Hacked . | . . . Non-combat . | . . . Combat . | . . . Robot Hacks Applied . | . . . Relay Couplers Released . | . . . Fabnet Peak Effective % . | . . . Robots Rewired . | . . . Allies Hacked . | . . . Hacks Repelled . | . . . Allies | -11 -10 -9 -------- Run | Yrd Mat Mat Total Allies . | . . . Largest Group . | . . . Highest-Rated Group . | . . . Highest-Rated Ally . | . . . Total Orders . | . . . Ally Attacks . | . . . Total Damage . | . . . Kills . | . . . Allies Corrupted . | . . . Allies Melted . | . . . Intel | -11 -10 -9 ------- Run | Yrd Mat Mat Active Infowar (turns) 1463 | . 397 1066 Sensors 1065 | . . 1065 Structural 1044 | . 174 870 Seismic 476 | . 392 84 ECM 5 | . 5 . Robot Analysis Total . | . . . Derelict Logs Recovered . | . . . Drone Launches . | . . . Drone Recoveries . | . . . Exploration | -11 -10 -9 ------------- Run | Yrd Mat Mat Turns Passed 1685 | 85 499 1101 Spaces Moved 1209 | 67 402 740 Core 261 | 4 . 257 Treads . | . . . Legs 13 | . . 13 Wheels 759 | 63 402 294 Hover . | . . . Flight 176 | . . 176 Fastest Speed 37 | 50 90 37 Average Speed 93 | 83 90 96 Slowest Speed 120 | 90 90 120 Overloaded Moves . | . . . Propulsion Burnouts . | . . . Robots Hopped . | . . . Potential Cave-ins . | . . . Cave-ins Triggered . | . . . Exploration Rate (%) 45 | 4 71 61 Regions Visited 2 Branch Regions . Pre-discovered Areas . | . . . Known Exits Taken . | . . . Unknown Exits Taken 2 | 1 1 . Scrap Searched . | . . . Spaces Dug 33 | . 24 9 Terrain Destroyed 101 | . 92 9 Melee 9 | . . 9 Projectile . | . . . AOE 92 | . 92 . Terrain Rammed . | . . . Walls Destroyed . | . . . Machines Disabled . | . . . Actions | -11 -10 -9 --------- Run | Yrd Mat Mat Total 1569 | 87 481 1001 Wait 168 | . 31 137 Move 1207 | 66 401 740 Hop . | . . . Pick Up 19 | 4 6 9 Fast Attach 24 | 12 2 10 Attach 8 | 1 . 7 Detach . | . . . Swap 4 | . 3 1 Drop 22 | 2 6 14 Fire 36 | 2 32 2 Melee 81 | . . 81 Ram . | . . . Kick . | . . . Crush . | . . . Escape Stasis . | . . . Rewire . | . . . Trap . | . . . Miscellaneous . | . . . Route ------- -11/Scrapyard -10/Materials (discovered 4 exits: *Mat x2 / *Min x2) -9/Materials (discovered 2 exits: *Mat / *Min) History --------- Turn | Location | Event 26 | -11/Scrapyard | Discovered new exit (range 15) 41 | -11/Scrapyard | Released all parts (5) 86 | -11/Scrapyard | Entered Materials 204 | -10/Materials | Discovered new exit (range 5) 309 | -10/Materials | Build established: Mutant 333 | -10/Materials | Identified exit to Mines 574 | -10/Materials | Discovered new exit (range 13) 585 | -10/Materials | Entered another Materials area 585 | -9/Materials | Evolved 2 slots: Utility x2 769 | -9/Materials | Discovered new exit (range 6) 772 | -9/Materials | Identified exit to Mines 1278 | -9/Materials | Discovered new exit (range 5) 1282 | -9/Materials | Identified exit to Materials 1420 | -9/Materials | Build established: Assassin 1618 | -9/Materials | Core integrity fell below 50% 1670 | -9/Materials | Core integrity fell below 20% 1686 | -9/Materials | Destroyed by Y-45 Defender with Beam Rifle Last Messages --------------- (Smash). 01667_ Destroyed Heat Sink. 01667_ Y-45 Defender system corrupted by crushing effect. 01667_ Y-45 Defender misfires. 01668_ Y-45 Defender system terminally corrupted. 01668_ Heat Sink fried. 01669_ Flail follow-up attack on S-10 Pest. 01669_ S-10 Pest destroyed. 01672_ Destroyed Lgt. Ion Engine. 01672_ S-10 Pest system corrupted by crushing effect. 01672_ Flail follow-up attack on S-10 Pest. 01672_ Destroyed Flight Unit. 01672_ S-10 Pest system corrupted by crushing effect. 01673_ S-10 Pest system terminally corrupted. 01675_ Dropped VSS Leg. 01676_ Acquired VSS Leg. Map ----- +----------------------------------------------------+ | "" ### """ # ######## """""%+ ####### ## | | """ ### """ # # ^ = # """"" # ## | | """ ### + # # """"" # T | | """ ########## # "" # """ # ## | | " #"""""""## / "Y^ # %#######+### ## | | #" |"| "## # "" #"S ## !! ### ### | | ##+##" "## # #""" ## !! ### # | | ######## "" ! ## ! ### # " | | > ######## ## ### + " | | ##???#########+## ### # | | ##+## ##/#+##??### """ # ## ### # | | ######### "?? ## "T" # ## """ + ### | | ######### ?? # # ## """ ### ### | | ##?????## * ## # ## """ ### | | ##?????# ? !!! ####+##+# ## ###! ! | | ##?????## ?"" !!! # ## =####!!!!# | | """ ##?????## ?"" !!! # ####### ################## | | """"##?????## ?"" # ####### ################## | | """"##?????## ?? !# ####### ##???????????????? | | """"######??????#######%# !=### ##???????????????? | | """ ######?????x ###### # ### ##???????????????? | | / ??? #Y ### ##???????????????? | | ###########????????#### # ### ##???????????????? | | ###########????????#### # ! ### ##???????????????? | | ?????????????????????## # %[##? ?????????????????? | | ?????????????????????## #@%[##? ?????????????????? | | ?????????????????????## ##s###? ?????????????????? | | ?????????????????????## *[ ?????????????????? | | ??????????????????????? ? ### ?????????????????? | | ??????????????????????? #### ?????????????????? | | ?????????????????????? ##????????????????????? | | ??????????????????????####+##????????????????????? | | ??????????????????????## ????????????????????? | | ?????????????????????????????????????????????????? | | ?????????????????????????????????????????????????? | | ?????????????????????????????????????????????????? | | ?????????????????????????????????????????????????? | | ?????????????????????????????????????????????????? | | ?????????????????????????????????????????????????? | | ?????????????????????????????????????????????????? | | ?????????????????????????????????????????????????? | | ?????????????????????????????????????????????????? | | ?????????????????????????????????????????????????? | | ?????????????????????????????????????????????????? | | ?????????????????????????????????????????????????? | | ???????????????????????!?????????????????????????? | | ?????????????????????????????????????????????????? | | ?????????????????????????????????????????????????? | | ?????????????????????????????????????????????????? | | ?????????????????????????????????????????????????? | +----------------------------------------------------+ Best States ------------- Heat Dissipation 28 Energy Generation 10 Energy Capacity 250 Matter Stores 300 Matter Capacity 300 Sight Range 16 Robot Scan Range 14 Terrain Scan Density 10 ECM Strength 1 Evasion (%) 62 Offensive Hacking 10 Item Schematics ----------------- None Robot Schematics ------------------ None Fabricated ------------ Nothing Repaired ---------- Nothing Alien Tech Used ----------------- None Achievements -------------- None Challenges ------------ None Game ------ Seed CobblerFissionScythe Manual? 0 Play Time 00:34:35 Cumulative 56.4 hours Start 2025.10.17 @ 14:04:29 End 2025.10.17 @ 14:54:14 Sessions 1 Manual Loads 0 Difficulty Rogue Special Mode None Game No. 28 Rogue 28 Adventurer 0 Explorer 0 Win Type - Total 1 Types 0/0/0/1/0/0/0/0/0/0 Lore% 18 Gallery% 30 Achievement% 38 Wizard Run 0 Options --------- Layout 1 ASCII 0 Keyboard 0 Movement Mouse Keybinds 0 Fullscreen 1 Font 24/Terminus Map View 50x35 Zoom Use 0% Tactical HUD 1 Map Filters NONE Filters NONE Steam 1 RUN: a99fa9eb-9322-4007-8840-ab7cc2a0fa49